lending/lending_fUSD_20250917
["ID","MTS","AMOUNT","RATE_DAILY","PERIOD"]
[385927591,1758136262893,-732.59,0.00023369,2]
[385927592,1758136262910,-495.89,0.00023369,2]
[385927593,1758136262920,-482.84,0.00023369,2]
[385927594,1758136262932,-400.0,0.00023369,2]
[385927595,1758136262944,-400.0,0.00023369,2]
[385927596,1758136262955,-802.0,0.00023369,2]
[385927597,1758136262965,-400.0,0.00023369,2]
[385927598,1758136262975,-519.33,0.00023369,2]
[385927599,1758136262985,-400.0,0.00023369,2]
[385927600,1758136262995,-400.0,0.00023369,2]
[385927601,1758136263005,-400.0,0.00023369,2]
[385927602,1758136263018,-400.0,0.00023369,2]
[385927603,1758136263030,-424.54,0.00023369,2]
[385927604,1758136263041,-400.0,0.00023369,2]
[385927605,1758136263052,-400.0,0.00023369,2]
[385927606,1758136263062,-628.05,0.00023369,2]
[385927607,1758136263072,-933.74,0.00023369,2]
[385927608,1758136263082,-400.0,0.00023369,2]
[385927609,1758136263093,-400.0,0.00023369,2]
[385927610,1758136263102,-465.03,0.00023369,2]
[385927611,1758136263112,-400.83,0.00023369,2]
[385927612,1758136263122,-400.0,0.00023369,2]
[385927613,1758136263132,-400.0,0.00023369,2]
[385927614,1758136263142,-466.1,0.00023369,2]
[385927615,1758136263157,-400.0,0.00023369,2]
[385927616,1758136263167,-400.0,0.00023369,2]
[385927617,1758136263178,-585.96,0.00023369,2]
[385927618,1758136263188,-400.0,0.00023369,2]
[385927619,1758136263198,-400.0,0.00023369,2]
[385927620,1758136263207,-400.0,0.00023369,2]
[385927621,1758136263217,-493.31,0.00023369,2]
[385927622,1758136263227,-400.0,0.00023369,2]
[385927623,1758136263236,-400.0,0.00023369,2]
[385927624,1758136263245,-907.1,0.00023369,2]
[385927625,1758136263255,-460.97,0.00023369,2]
[385927626,1758136263265,-151.0,0.00023369,7]
[385927627,1758136263274,-508.35,0.00023369,2]
[385927628,1758136263284,-400.0,0.00023369,2]
[385927629,1758136263294,-444.41,0.00023369,2]
[385927630,1758136263304,-400.0,0.00023369,2]
[385927631,1758136263314,-400.0,0.00023369,2]
[385927632,1758136263324,-583.27,0.00023369,2]
[385927633,1758136263333,-400.0,0.00023369,2]
[385927634,1758136263343,-783.48,0.00023369,2]
[385927635,1758136263353,-416.12,0.00023369,2]
[385927636,1758136263363,-411.93,0.00023369,2]
[385927637,1758136263373,-400.0,0.00023369,2]
[385927638,1758136263382,-400.0,0.00023369,2]
[385927639,1758136263392,-400.0,0.00023369,2]
[385927640,1758136263407,-400.0,0.00023369,2]
[385927641,1758136263417,-459.69,0.00023369,2]
[385927642,1758136263426,-430.75,0.00023369,2]
[385927643,1758136263435,-505.51,0.00023369,2]
[385927644,1758136263445,-400.0,0.00023369,2]
[385927645,1758136263455,-400.0,0.00023369,2]
[385927646,1758136263464,-400.0,0.00023369,2]
[385927647,1758136263474,-400.0,0.00023369,2]
[385927648,1758136263484,-12634.62,0.00023369,2]
[385927649,1758136263493,-400.0,0.00023369,2]
[385927650,1758136263503,-851.6,0.00023369,2]
[385927651,1758136263516,-845.47,0.00023369,2]
[385927652,1758136263528,-400.0,0.00023369,2]
[385927653,1758136263538,-475.45,0.00023369,2]
[385927654,1758136263547,-500.0,0.00023369,2]
[385927655,1758136263557,-820.18,0.00023369,2]
[385927656,1758136263567,-1710.32,0.00023369,2]
[385927657,1758136263577,-400.0,0.00023369,2]
[385927658,1758136263587,-1896.06,0.00023369,2]
[385927659,1758136263596,-777.7,0.00023369,2]
[385927660,1758136263606,-511.45,0.00023369,2]
[385927661,1758136263616,-1055.91,0.00023369,2]
[385927662,1758136263626,-400.0,0.00023369,2]
[385927663,1758136263636,-606.73,0.00023369,2]
[385927664,1758136263648,-586.59,0.00023369,2]
[385927665,1758136263657,-181.019575,0.00023369,7]
[385927666,1758136263667,-3039.52,0.00023369,2]
[385927667,1758136263676,-181.019575,0.00023369,7]
[385927668,1758136263685,-814.52,0.00023369,2]
[385927669,1758136263695,-400.0,0.00023369,2]
[385927670,1758136263705,-181.019575,0.00023369,7]
[385927671,1758136263715,-884.98,0.00023369,2]
[385927672,1758136263724,-479.7,0.00023369,2]
[385927673,1758136263734,-181.01958,0.00023369,7]
[385927674,1758136263744,-459.19,0.00023369,2]
[385927675,1758136263754,-400.0,0.00023369,2]
[385927676,1758136263763,-400.0,0.00023369,2]
[385927677,1758136263774,-440.04,0.00023369,2]
[385927678,1758136263784,-404.2,0.00023369,2]
[385927679,1758136263795,-666.29,0.00023369,2]
[385927680,1758136263805,-633.25,0.00023369,2]
[385927681,1758136263814,-400.0,0.00023369,2]
[385927682,1758136263825,-433.4,0.00023369,2]
[385927683,1758136263835,-993.76,0.00023369,2]
[385927684,1758136263844,-528.62,0.00023369,2]
[385927685,1758136263855,-531.47,0.00023369,2]
[385927686,1758136263865,-591.57,0.00023369,2]
[385927687,1758136263876,-466.37,0.00023369,2]
[385927688,1758136263886,-400.0,0.00023369,2]
[385927689,1758136263898,-454.53,0.00023369,2]
[385927690,1758136263908,-400.0,0.00023369,2]
[385927691,1758136263918,-400.0,0.00023369,2]
[385927692,1758136263928,-570.26,0.00023369,2]
[385927693,1758136263939,-1028.27,0.00023369,2]
[385927694,1758136263949,-400.0,0.00023369,2]
[385927695,1758136263959,-404.19,0.00023369,2]
[385927696,1758136263969,-400.0,0.00023369,2]
[385927697,1758136263979,-400.0,0.00023369,2]
[385927698,1758136263989,-542.26365935,0.00023369,2]
[385927699,1758136264000,-400.0,0.00023369,2]
[385927700,1758136264009,-2997.36,0.00023369,2]
[385927701,1758136264019,-400.0,0.00023369,2]
[385927702,1758136264031,-1862.36,0.00023369,2]
[385927703,1758136264041,-400.0,0.00023369,2]
[385927704,1758136264052,-344.81775605,0.00023369,2]
[385927705,1758136264062,-400.0,0.00023369,2]
[385927706,1758136264072,-433.76,0.00023369,2]
[385927707,1758136264082,-400.0,0.00023369,2]
[385927708,1758136264092,-601.08,0.00023369,2]
[385927709,1758136264103,-520.12,0.00023369,2]
[385927710,1758136264113,-400.0,0.00023369,2]
[385927711,1758136264123,-467.01,0.00023369,2]
[385927712,1758136264132,-400.0,0.00023369,2]
[385927713,1758136264142,-470.61,0.00023369,2]
[385927714,1758136264155,-590.68,0.00023369,2]
[385927715,1758136264167,-723.81,0.00023369,2]
[385927716,1758136264177,-1622.69,0.00023369,2]
[385927717,1758136264188,-2362.3,0.00023369,2]
[385927718,1758136264199,-400.0,0.00023369,2]
[385927719,1758136264210,-463.92,0.00023369,2]
[385927720,1758136264219,-400.0,0.00023369,2]
[385927721,1758136264229,-400.0,0.00023369,2]
[385927722,1758136264239,-400.0,0.00023369,2]
[385927723,1758136264248,-400.0,0.00023369,2]
[385927724,1758136264259,-804.75,0.00023369,2]
[385927725,1758136264269,-416.78,0.00023369,2]
[385927726,1758136264279,-406.65,0.00023369,2]
[385927727,1758136264289,-686.88,0.00023369,2]
[385927728,1758136264298,-400.0,0.00023369,2]
[385927729,1758136264308,-400.0,0.00023369,2]
[385927730,1758136264317,-341.23675552,0.00023369,2]
[385927731,1758136264327,-1018.96,0.00023369,2]
[385927732,1758136264337,-686.5,0.00023369,2]
[385927733,1758136264347,-400.0,0.00023369,2]
[385927734,1758136264356,-1503.39,0.00023369,2]
[385927735,1758136264366,-285.18,0.00023375,2]
[385927736,1758136264377,-334.14,0.00023378,2]
[385927737,1758136264386,-150.0,0.00023385,4]
[385927738,1758136264398,-12572.72494434,0.000235,2]
[385927739,1758136264413,-400.0,0.00023561,2]
[385927740,1758136264422,-582.01,0.00023561,2]
[385927741,1758136264432,-745.68,0.00023561,2]
[385927742,1758136264442,-482.63,0.00023561,2]
[385927743,1758136264452,-400.0,0.00023561,2]
[385927744,1758136264463,-494.82,0.00023561,2]
[385927745,1758136264473,-400.0,0.00023561,2]
[385927746,1758136264484,-400.0,0.00023561,2]
[385927747,1758136264495,-400.0,0.00023561,2]
[385927748,1758136264504,-400.0,0.00023561,2]
[385927749,1758136264514,-1751.24,0.00023561,2]
[385927750,1758136264524,-284.99243548,0.00023571,2]
[385927751,1758136264534,-150.0,0.00023587,4]
[385927752,1758136264543,-290.14684886,0.00023616,2]
[385927753,1758136264553,-2000.0,0.00023616,2]
[385927754,1758136264563,-1274.13036564,0.00023616,2]
[385927755,1758136264573,-2000.0,0.00023616,2]
[385927756,1758136264583,-2000.0,0.00023616,2]
[385927757,1758136264592,-1203.46004126,0.00023616,2]
[385927758,1758136264602,-2000.0,0.00023616,2]
[385927759,1758136264611,-243.49354695,0.00023617,2]
[385927760,1758136264621,-209.83535808,0.00023617,2]
[385927761,1758136264631,-500.0,0.00023617,2]
[385927762,1758136264640,-500.0,0.00023617,2]
[385927763,1758136264653,-605.0,0.00023617,2]
[385927764,1758136264663,-537.70025364,0.00023617,2]
[385927765,1758136264673,-2442.0,0.00023617,2]
[385927766,1758136264683,-500.0,0.00023631,2]
[385927767,1758136264768,-595.0,0.00023631,2]
[385927768,1758136264777,-507.47124656,0.00023631,2]
[385927769,1758136264787,-701.97,0.00023642,2]
[385927770,1758136264796,-400.0,0.00023642,2]
[385927771,1758136264806,-415.4,0.00023642,2]
[385927772,1758136264816,-400.0,0.00023642,2]
[385927773,1758136264825,-400.0,0.00023642,2]
[385927774,1758136264835,-898.21,0.00023642,2]
[385927775,1758136264845,-401.69,0.00023642,2]
[385927776,1758136264855,-553.35,0.00023642,2]
[385927777,1758136264865,-1177.51,0.00023642,2]
[385927778,1758136264875,-500.0,0.00023643,2]
[385927779,1758136264884,-150.0,0.00023643,2]
[385927780,1758136264895,-500.0,0.00023643,2]
[385927781,1758136264905,-500.0,0.00023643,2]
[385927782,1758136264914,-150.0,0.00023643,2]
[385927783,1758136264923,-500.0,0.00023643,2]
[385927784,1758136264932,-500.0,0.00023643,2]
[385927785,1758136264942,-221.24182297,0.00023643,2]
[385927786,1758136264951,-500.0,0.00023643,2]
[385927787,1758136264960,-500.0,0.00023643,2]
[385927788,1758136264970,-150.0,0.00023643,2]
[385927789,1758136264979,-150.0,0.00023643,2]
[385927790,1758136264988,-150.0,0.00023643,2]
[385927791,1758136264997,-500.0,0.00023643,2]
[385927792,1758136265008,-400.0,0.00023643,2]
[385927793,1758136265017,-152.644779,0.00023643,2]
[385927794,1758136265026,-426.83879721,0.00023643,2]
[385927795,1758136265035,-400.0,0.00023643,2]
[385927796,1758136265045,-400.0,0.00023643,2]
[385927797,1758136265054,-487.3,0.00023643,2]
[385927798,1758136265064,-400.0,0.00023643,2]
[385927799,1758136265073,-619.0,0.00023643,2]
[385927800,1758136265083,-400.0,0.00023643,2]
[385927801,1758136265092,-400.0,0.00023643,2]
[385927802,1758136265102,-737.53,0.00023643,2]
[385927803,1758136265111,-443.81,0.00023643,2]
[385927804,1758136265121,-400.0,0.00023643,2]
[385927805,1758136265130,-493.3,0.00023643,2]
[385927806,1758136265140,-400.0,0.00023643,2]
[385927807,1758136265151,-620.66,0.00023643,2]
[385927808,1758136265161,-600.69,0.00023643,2]
[385927809,1758136265170,-522.27,0.00023643,2]
[385927810,1758136265180,-395.78583327,0.00023643,2]
[385927811,1758136265190,-400.0,0.00023643,2]
[385927812,1758136265199,-409.05,0.00023643,2]
[385927813,1758136265208,-431.09,0.00023643,2]
[385927814,1758136265217,-400.0,0.00023643,2]
[385927815,1758136265227,-400.0,0.00023643,2]
[385927816,1758136265237,-400.0,0.00023643,2]
[385927817,1758136265246,-400.0,0.00023643,2]
[385927818,1758136265255,-508.41,0.00023643,2]
[385927819,1758136265264,-400.0,0.00023643,2]
[385927820,1758136265273,-458.23,0.00023643,2]
[385927821,1758136265282,-413.13,0.00023643,2]
[385927822,1758136265292,-1664.17,0.00023643,2]
[385927823,1758136265301,-400.0,0.00023643,2]
[385927824,1758136265310,-400.0,0.00023643,2]
[385927825,1758136265320,-400.0,0.00023643,2]
[385927826,1758136265329,-530.6,0.00023643,2]
[385927827,1758136265338,-400.0,0.00023643,2]
[385927828,1758136265347,-400.0,0.00023643,2]
[385927829,1758136265356,-400.0,0.00023643,2]
[385927830,1758136265365,-226.17092789,0.00023643,2]
[385927831,1758136265375,-582.21,0.00023643,2]
[385927832,1758136265383,-400.0,0.00023643,2]
[385927833,1758136265393,-400.0,0.00023643,2]
[385927834,1758136265406,-400.0,0.00023643,2]
[385927835,1758136265416,-400.0,0.00023643,2]
[385927836,1758136265425,-400.0,0.00023643,2]
[385927837,1758136265435,-490.63,0.00023643,2]
[385927838,1758136265444,-400.0,0.00023643,2]
[385927839,1758136265453,-530.93,0.00023643,2]
[385927840,1758136265462,-510.64800462,0.00023643,2]
[385927841,1758136265472,-400.0,0.00023643,2]
[385927842,1758136265482,-400.0,0.00023643,2]
[385927843,1758136265492,-400.0,0.00023643,2]
[385927844,1758136265501,-400.0,0.00023643,2]
[385927845,1758136265511,-400.0,0.00023643,2]
[385927846,1758136265520,-400.0,0.00023643,2]
[385927847,1758136265529,-400.0,0.00023643,2]
[385927848,1758136265539,-436.11,0.00023643,2]
[385927849,1758136265548,-400.0,0.00023643,2]
[385927850,1758136265557,-465.08,0.00023643,2]
[385927851,1758136265566,-400.0,0.00023643,2]
[385927852,1758136265575,-400.0,0.00023643,2]
[385927853,1758136265585,-416.56,0.00023643,2]
[385927854,1758136265594,-400.0,0.00023643,2]
[385927855,1758136265603,-400.0,0.00023643,2]
[385927856,1758136265612,-400.0,0.00023643,2]
[385927857,1758136265622,-547.43,0.00023643,2]
[385927858,1758136265631,-400.0,0.00023643,2]
[385927859,1758136265640,-400.0,0.00023643,2]
[385927860,1758136265649,-475.01858558,0.00023643,2]
[385927861,1758136265658,-400.0,0.00023643,2]
[385927862,1758136265667,-400.0,0.00023643,2]
[385927863,1758136265677,-588.4,0.00023643,2]
[385927864,1758136265686,-400.0,0.00023643,2]
[385927865,1758136265696,-1198.21,0.00023643,2]
[385927866,1758136265705,-400.0,0.00023643,2]
[385927867,1758136265714,-569.33,0.00023643,2]
[385927868,1758136265723,-400.0,0.00023643,2]
[385927869,1758136265732,-400.0,0.00023643,2]
[385927870,1758136265742,-754.49,0.00023643,2]
[385927871,1758136265751,-439.03,0.00023643,2]
[385927872,1758136265760,-400.0,0.00023643,2]
[385927873,1758136265770,-408.32,0.00023643,2]
[385927874,1758136265779,-520.33,0.00023643,2]
[385927875,1758136265788,-1051.19,0.00023643,2]
[385927876,1758136265797,-400.0,0.00023643,2]
[385927877,1758136265806,-400.0,0.00023643,2]
[385927878,1758136265816,-732.59,0.00023643,2]
[385927879,1758136265825,-495.89,0.00023643,2]
[385927880,1758136265834,-482.84,0.00023643,2]
[385927881,1758136265843,-400.0,0.00023643,2]
[385927882,1758136265852,-400.0,0.00023643,2]
[385927883,1758136265862,-802.0,0.00023643,2]
[385927884,1758136265871,-400.0,0.00023643,2]
[385927885,1758136265880,-519.33,0.00023643,2]
[385927886,1758136265889,-400.0,0.00023643,2]
[385927887,1758136265899,-400.0,0.00023643,2]
[385927888,1758136265909,-400.0,0.00023643,2]
[385927889,1758136265918,-400.0,0.00023643,2]
[385927890,1758136265927,-424.54,0.00023643,2]
[385927891,1758136265936,-400.0,0.00023643,2]
[385927892,1758136265946,-400.0,0.00023643,2]
[385927893,1758136265955,-628.05,0.00023643,2]
[385927894,1758136265964,-933.74,0.00023643,2]
[385927895,1758136265974,-400.0,0.00023643,2]
[385927896,1758136265983,-400.0,0.00023643,2]
[385927897,1758136265992,-465.03,0.00023643,2]
[385927898,1758136266001,-400.83,0.00023643,2]
[385927899,1758136266011,-400.0,0.00023643,2]
[385927900,1758136266022,-400.0,0.00023643,2]
[385927901,1758136266031,-466.1,0.00023643,2]
[385927902,1758136266041,-400.0,0.00023643,2]
[385927903,1758136266051,-585.96,0.00023643,2]
[385927904,1758136266060,-547.81658491,0.00023643,2]
[385927905,1758136266070,-400.0,0.00023643,2]
[385927906,1758136266079,-400.0,0.00023643,2]
[385927907,1758136266088,-400.0,0.00023643,2]
[385927908,1758136266097,-493.31,0.00023643,2]
[385927909,1758136266106,-400.0,0.00023643,2]
[385927910,1758136266115,-400.0,0.00023643,2]
[385927911,1758136266124,-907.1,0.00023643,2]
[385927912,1758136266133,-460.97,0.00023643,2]
[385927913,1758136266142,-151.0,0.00023643,7]
[385927914,1758136266154,-508.35,0.00023643,2]
[385927915,1758136266164,-400.0,0.00023643,2]
[385927916,1758136266173,-444.41,0.00023643,2]
[385927917,1758136266182,-400.0,0.00023643,2]
[385927918,1758136266192,-400.0,0.00023643,2]
[385927919,1758136266201,-583.27,0.00023643,2]
[385927920,1758136266210,-400.0,0.00023643,2]
[385927921,1758136266220,-783.48,0.00023643,2]
[385927922,1758136266229,-416.12,0.00023643,2]
[385927923,1758136266238,-411.93,0.00023643,2]
[385927924,1758136266247,-400.0,0.00023643,2]
[385927925,1758136266256,-400.0,0.00023643,2]
[385927926,1758136266266,-510.24174265,0.00023643,2]
[385927927,1758136266275,-400.0,0.00023643,2]
[385927928,1758136266284,-459.69,0.00023643,2]
[385927929,1758136266293,-430.75,0.00023643,2]
[385927930,1758136266303,-505.51,0.00023643,2]
[385927931,1758136266312,-400.0,0.00023643,2]
[385927932,1758136266321,-400.0,0.00023643,2]
[385927933,1758136266331,-400.0,0.00023643,2]
[385927934,1758136266340,-508.63709762,0.00023643,2]
[385927935,1758136266349,-12634.62,0.00023643,2]
[385927936,1758136266358,-400.0,0.00023643,2]
[385927937,1758136266367,-851.6,0.00023643,2]
[385927938,1758136266377,-845.47,0.00023643,2]
[385927939,1758136266386,-200.06366603,0.00023643,2]
[385927940,1758136266395,-475.45,0.00023643,2]
[385927941,1758136266410,-500.0,0.00023643,2]
[385927942,1758136266419,-820.18,0.00023643,2]
[385927943,1758136266429,-1710.32,0.00023643,2]
[385927944,1758136266439,-400.0,0.00023643,2]
[385927945,1758136266451,-1896.06,0.00023643,2]
[385927946,1758136266461,-777.7,0.00023643,2]
[385927947,1758136266472,-511.45,0.00023643,2]
[385927948,1758136266485,-1055.91,0.00023643,2]
[385927949,1758136266494,-400.0,0.00023643,2]
[385927950,1758136266504,-606.73,0.00023643,2]
[385927951,1758136266514,-586.59,0.00023643,2]
[385927952,1758136266523,-3039.52,0.00023643,2]
[385927953,1758136266535,-814.52,0.00023643,2]
[385927954,1758136266547,-400.0,0.00023643,2]
[385927955,1758136266557,-884.98,0.00023643,2]
[385927956,1758136266567,-479.7,0.00023643,2]
[385927957,1758136266576,-459.19,0.00023643,2]
[385927958,1758136266586,-400.0,0.00023643,2]
[385927959,1758136266595,-407.03862934,0.00023643,2]
[385927960,1758136266605,-440.04,0.00023643,2]
[385927961,1758136266614,-404.2,0.00023643,2]
[385927962,1758136266623,-666.29,0.00023643,2]
[385927963,1758136266633,-633.25,0.00023643,2]
[385927964,1758136266643,-400.0,0.00023643,2]
[385927965,1758136266653,-433.4,0.00023643,2]
[385927966,1758136266662,-993.76,0.00023643,2]
[385927967,1758136266672,-528.62,0.00023643,2]
[385927968,1758136266681,-531.47,0.00023643,2]
[385927969,1758136266690,-591.57,0.00023643,2]
[385927970,1758136266699,-466.37,0.00023643,2]
[385927971,1758136266709,-400.0,0.00023643,2]
[385927972,1758136266723,-454.53,0.00023643,2]
[385927973,1758136266733,-400.0,0.00023643,2]
[385927974,1758136266743,-400.0,0.00023643,2]
[385927975,1758136266752,-570.26,0.00023643,2]
[385927976,1758136266762,-1028.27,0.00023643,2]
[385927977,1758136266771,-400.0,0.00023643,2]
[385927978,1758136266780,-404.19,0.00023643,2]
[385927979,1758136266789,-400.0,0.00023643,2]
[385927980,1758136266799,-400.0,0.00023643,2]
[385927981,1758136266809,-400.0,0.00023643,2]
[385927982,1758136266818,-2997.36,0.00023643,2]
[385927983,1758136266829,-400.0,0.00023643,2]
[385927984,1758136266839,-1862.36,0.00023643,2]
[385927985,1758136266849,-400.0,0.00023643,2]
[385927986,1758136266859,-400.0,0.00023643,2]
[385927987,1758136266869,-433.76,0.00023643,2]
[385927988,1758136266880,-276.68457845,0.00023643,2]
[385927989,1758136266890,-601.08,0.00023643,2]
[385927990,1758136266901,-520.12,0.00023643,2]
[385927991,1758136266911,-400.0,0.00023643,2]
[385927992,1758136266921,-467.01,0.00023643,2]
[385927993,1758136266931,-400.0,0.00023643,2]
[385927994,1758136266941,-470.61,0.00023643,2]
[385927995,1758136266950,-590.68,0.00023643,2]
[385927996,1758136266960,-723.81,0.00023643,2]
[385927997,1758136266970,-1622.69,0.00023643,2]
[385927998,1758136266980,-2362.3,0.00023643,2]
[385927999,1758136266989,-400.0,0.00023643,2]
[385928000,1758136266999,-463.92,0.00023643,2]
[385928001,1758136267008,-400.0,0.00023643,2]
[385928002,1758136267018,-400.0,0.00023643,2]
[385928003,1758136267027,-400.0,0.00023643,2]
[385928004,1758136267036,-400.0,0.00023643,2]
[385928005,1758136267046,-804.75,0.00023643,2]
[385928006,1758136267055,-416.78,0.00023643,2]
[385928007,1758136267065,-686.88,0.00023643,2]
[385928008,1758136267075,-406.65,0.00023643,2]
[385928009,1758136267085,-400.0,0.00023643,2]
[385928010,1758136267094,-400.0,0.00023643,2]
[385928011,1758136267103,-1018.96,0.00023643,2]
[385928012,1758136267112,-686.5,0.00023643,2]
[385928013,1758136267122,-400.0,0.00023643,2]
[385928014,1758136267131,-1503.39,0.00023643,2]
[385928015,1758136267141,-4835.79088625,0.0002366,2]
[385928016,1758136267154,-1000.0,0.00023688,2]
[385928017,1758136267164,-1000.0,0.00023688,2]
[385928018,1758136267173,-1000.0,0.00023688,2]
[385928019,1758136267183,-1000.0,0.00023688,2]
[385928020,1758136267193,-1000.0,0.00023688,2]
[385928021,1758136267202,-504.00429175,0.00023688,2]
[385928022,1758136267211,-1000.0,0.00023688,2]
[385928023,1758136267222,-1000.0,0.00023688,2]
[385928024,1758136267231,-859.52646075,0.00023712,2]
[385928025,1758136267240,-730.42,0.00023726,2]
[385928026,1758136267249,-3300.0,0.000238,8]
[385928027,1758136267260,-178.23,0.000238,2]
[385928028,1758136267269,-322.6107,0.00023814,2]
[385928029,1758136267278,-151.0,0.00023814,2]
[385928030,1758136267287,-373.07476847,0.00023814,2]
[385928031,1758136267296,-151.0,0.00023814,2]
[385928032,1758136267305,-248.71531821,0.00023814,2]
[385928033,1758136267314,-160.0,0.00023814,2]
[385928034,1758136267323,-1387.90122726,0.00023814,2]
[385928035,1758136267332,-500.0,0.00023814,2]
[385928036,1758136267342,-500.0,0.00023814,2]
[385928037,1758136267351,-302.0,0.00023814,2]
[385928038,1758136267360,-500.0,0.00023814,2]
[385928039,1758136267369,-500.0,0.00023814,2]
[385928040,1758136267379,-500.0,0.00023814,2]
[385928041,1758136267388,-500.0,0.00023814,2]
[385928042,1758136267400,-269.54820062,0.00023814,2]
[385928043,1758136267410,-151.0,0.00023814,2]
[385928044,1758136267419,-500.0,0.00023814,2]
[385928045,1758136267429,-500.0,0.00023814,2]
[385928046,1758136267438,-500.0,0.00023814,2]
[385928047,1758136267447,-500.0,0.00023814,2]
[385928048,1758136267456,-500.0,0.00023814,2]
[385928049,1758136267466,-500.0,0.00023814,2]
[385928050,1758136267475,-1000.0,0.00023823,2]
[385928051,1758136267484,-1000.0,0.00023823,2]
[385928052,1758136267493,-1000.0,0.00023823,2]
[385928053,1758136267502,-1000.0,0.00023823,2]
[385928054,1758136267512,-400.0,0.00023835,2]
[385928055,1758136267521,-582.01,0.00023835,2]
[385928056,1758136267531,-745.68,0.00023835,2]
[385928057,1758136267541,-482.63,0.00023835,2]
[385928058,1758136267550,-400.0,0.00023835,2]
[385928059,1758136267560,-494.82,0.00023835,2]
[385928060,1758136267570,-400.0,0.00023835,2]
[385928061,1758136267579,-159.91517933,0.00023835,2]
[385928062,1758136267589,-400.0,0.00023835,2]
[385928063,1758136267598,-400.0,0.00023835,2]
[385928064,1758136267607,-150.0,0.00023876,2]
[385928065,1758136267616,-171.38,0.00023876,2]
[385928066,1758136267625,-411.23,0.00023876,2]
[385928067,1758136267634,-411.23,0.00023876,2]
[385928068,1758136267644,-411.23,0.00023876,2]
[385928069,1758136267654,-411.23,0.00023876,2]
[385928070,1758136267664,-500.0,0.00023891,2]
[385928071,1758136267673,-500.0,0.00023891,2]
[385928072,1758136267683,-605.0,0.00023891,2]
[385928073,1758136267692,-2442.0,0.00023891,2]
[385928074,1758136267701,-10173.21048748,0.000239,2]
[385928075,1758136267711,-5000.0,0.000239,8]
[385928076,1758136267720,-500.0,0.00023905,2]
[385928077,1758136267729,-595.0,0.00023905,2]
[385928078,1758136267738,-400.0,0.00023916,2]
[385928079,1758136267748,-415.4,0.00023916,2]
[385928080,1758136267758,-400.0,0.00023916,2]
[385928081,1758136267767,-400.0,0.00023916,2]
[385928082,1758136267777,-898.21,0.00023916,2]
[385928083,1758136267787,-401.69,0.00023916,2]
[385928084,1758136267796,-553.35,0.00023916,2]
[385928085,1758136267805,-1177.51,0.00023916,2]
[385928086,1758136267815,-500.0,0.00023917,2]
[385928087,1758136267824,-150.0,0.00023917,2]
[385928088,1758136267833,-500.0,0.00023917,2]
[385928089,1758136267843,-500.0,0.00023917,2]
[385928090,1758136267855,-200.0,0.00023917,2]